Workbook

Sheet Germo
A1: Guest Name | B1: Room CAT | C1: Check In | D1: Check Out | E1: NIT | F1: No.Rooms | G1: Rate P.P | H1: R.Price | I1: Comm | J1: R.Price Net | K1: =Germo!K2+Avalible!K2+'Travel Band'!K2+Fujy!K2+'Tomy Tour'!K2+'Sun International'!K2+'Golden Valley'!K2+E.H.T!K2+'Out Boon'!K2+'Alpah Travel'!K2+'Gomaa Abbas'!K2+'4 Season'!K2+'Air Link'!K2 -> 117442.8 | N1: Date Of Payment | O1: Amount | T1: Germo | U1: Single | V1: 0.15
A2: Germo | B2: Famliy | C2: 2019-04-15 | D2: 2019-04-20 | E2: 5 | F2: 1 | G2: 100 | H2: 1500 | I2: 0.15 | J2: 1275 | K2: =SUM(J2:J1000) -> 17552.5 | L2: =SUM(F2:F1000) -> 17 | N2: 2019-04-22 | O2: 10000 | T2: Avalible | U2: Double | V2: 0.1
A3: Germo | B3: Famliy | C3: 2019-04-20 | D3: 2019-04-24 | E3: 4 | F3: 1 | G3: 100 | H3: 1200 | I3: 0.15 | J3: 1020 | K3: =SUM(O2:O10000) -> 10000 | T3: Travel Band | U3: Famliy | V3: No Commission
A4: Germo | B4: Famliy | C4: 2019-04-20 | D4: 2019-04-25 | E4: 5 | F4: 4 | G4: 100 | H4: 6000 | I4: 0.15 | J4: 5100 | T4: Fujy | U4: Triple
A5: Germo | B5: Single | C5: 2019-04-20 | D5: 2019-04-25 | E5: 5 | F5: 1 | G5: 100 | H5: 750 | I5: 0.15 | J5: 637.5 | T5: Tomy Tour | U5: Jouner Swiet
A6: Germo | B6: Single | C6: 2019-04-23 | D6: 2019-04-30 | E6: 7 | F6: 8 | G6: 100 | H6: 8400 | I6: 0.15 | J6: 7140 | T6: Sun International | U6: Royal Swiet
A7: Germo | B7: Double | C7: 2019-04-23 | D7: 2019-04-30 | E7: 7 | F7: 2 | G7: 100 | H7: 2800 | I7: 0.15 | J7: 2380 | T7: Golden Valley
T8: E.H.T
T9: Out boon
T10: Alpah Travel
T11: Gomaa Abbas
T12: 4 Season
T13: Air Link

Sheet Avalible
A1: Guest Name | B1: Room CAT | C1: Check In | D1: Check Out | E1: NIT | F1: No.Rooms | G1: Rate P.P | H1: R.Price | I1: Comm | J1: R.Price Net | K1: =Germo!K2+Avalible!K2+'Travel Band'!K2+Fujy!K2+'Tomy Tour'!K2+'Sun International'!K2+'Golden Valley'!K2+E.H.T!K2+'Out Boon'!K2+'Alpah Travel'!K2+'Gomaa Abbas'!K2+'4 Season'!K2+'Air Link'!K2 -> 117442.8 | N1: Date Of Payment | O1: Amount | U1: 2019-04-16
A2: Avalible | B2: Triple | C2: 2019-04-24 | D2: 2019-04-29 | E2: 5 | F2: 1 | G2: 100 | H2: 1470 | I2: 0.15 | J2: 1249.5 | K2: =SUM(J2:J1000) -> 4199 | L2: =SUM(F2:F1000) -> 4 | N2: 2019-05-01 | O2: 500 | U2: 2019-04-20
A3: Avalible | B3: Double | C3: 2019-04-24 | D3: 2019-04-29 | E3: 5 | F3: 2 | G3: 100 | H3: 2000 | I3: 0.15 | J3: 1700 | K3: =SUM(O2:O10000) -> 500
A4: Avalible | B4: Triple | C4: 2019-04-24 | D4: 2019-04-29 | E4: 5 | F4: 1 | G4: 100 | H4: 1470 | I4: 0.15 | J4: 1249.5

Sheet Travel Band
A1: Guest Name | B1: Room CAT | C1: Check In | D1: Check Out | E1: NIT | F1: No.Rooms | G1: Rate P.P | H1: R.Price | I1: Comm | J1: R.Price Net | K1: =Germo!K2+Avalible!K2+'Travel Band'!K2+Fujy!K2+'Tomy Tour'!K2+'Sun International'!K2+'Golden Valley'!K2+E.H.T!K2+'Out Boon'!K2+'Alpah Travel'!K2+'Gomaa Abbas'!K2+'4 Season'!K2+'Air Link'!K2 -> 117442.8 | N1: Date Of Payment | O1: Amount
A2: Travel Band | B2: Double | C2: 2019-04-15 | D2: 2019-04-19 | E2: 4 | F2: 1 | G2: 100 | H2: 800 | I2: 0.15 | J2: 680 | K2: =SUM(J2:J1000) -> 19550 | L2: =SUM(F2:F1000) -> 22 | N2: 2019-05-01 | O2: 500
A3: Travel Band | B3: Famliy | C3: 2019-04-20 | D3: 2019-04-26 | E3: 6 | F3: 2 | G3: 100 | H3: 3600 | I3: 0.15 | J3: 3060 | K3: =SUM(O2:O10000) -> 2500 | N3: 2019-04-25 | O3: 2000
A4: Travel Band | B4: Double | C4: 2019-04-22 | D4: 2019-04-27 | E4: 5 | F4: 2 | G4: 100 | H4: 2000 | I4: 0.15 | J4: 1700
A5: Travel Band | B5: Double | C5: 2019-04-22 | D5: 2019-04-28 | E5: 6 | F5: 2 | G5: 100 | H5: 2400 | I5: 0.15 | J5: 2040
A6: Travel Band | B6: Single | C6: 2019-04-22 | D6: 2019-04-28 | E6: 6 | F6: 2 | G6: 100 | H6: 1800 | I6: 0.15 | J6: 1530
A7: Travel Band | B7: Double | C7: 2019-04-23 | D7: 2019-04-27 | E7: 4 | F7: 3 | G7: 100 | H7: 2400 | I7: 0.15 | J7: 2040
A8: Travel Band | B8: Double | C8: 2019-04-25 | D8: 2019-04-30 | E8: 5 | F8: 10 | G8: 100 | H8: 10000 | I8: 0.15 | J8: 8500

Sheet Fujy
A1: Guest Name | B1: Room CAT | C1: Check In | D1: Check Out | E1: NIT | F1: No.Rooms | G1: Rate P.P | H1: R.Price | I1: Comm | J1: R.Price Net | K1: =Germo!K2+Avalible!K2+'Travel Band'!K2+Fujy!K2+'Tomy Tour'!K2+'Sun International'!K2+'Golden Valley'!K2+E.H.T!K2+'Out Boon'!K2+'Alpah Travel'!K2+'Gomaa Abbas'!K2+'4 Season'!K2+'Air Link'!K2 -> 117442.8 | N1: Date Of Payment | O1: Amount
A2: Fujy | B2: Double | C2: 2019-04-16 | D2: 2019-04-22 | E2: 6 | F2: 1 | G2: 100 | H2: 1200 | I2: 0.15 | J2: 1020 | K2: =SUM(J2:J1000) -> 12039.4 | L2: =SUM(F2:F1000) -> 13 | N2: 2019-05-01 | O2: 500
A3: Fujy | B3: Double | C3: 2019-04-20 | D3: 2019-04-26 | E3: 6 | F3: 1 | G3: 100 | H3: 1200 | I3: 0.15 | J3: 1020 | K3: =SUM(O2:O10000) -> 500
A4: Fujy | B4: Triple | C4: 2019-04-20 | D4: 2019-04-26 | E4: 6 | F4: 1 | G4: 100 | H4: 1764 | I4: 0.15 | J4: 1499.4
A5: Fujy | B5: Double | C5: 2019-04-25 | D5: 2019-04-30 | E5: 5 | F5: 10 | G5: 100 | H5: 10000 | I5: 0.15 | J5: 8500

Sheet Tomy Tour
A1: Guest Name | B1: Room CAT | C1: Check In | D1: Check Out | E1: NIT | F1: No.Rooms | G1: Rate P.P | H1: R.Price | I1: Comm | J1: R.Price Net | K1: =Germo!K2+Avalible!K2+'Travel Band'!K2+Fujy!K2+'Tomy Tour'!K2+'Sun International'!K2+'Golden Valley'!K2+E.H.T!K2+'Out Boon'!K2+'Alpah Travel'!K2+'Gomaa Abbas'!K2+'4 Season'!K2+'Air Link'!K2 -> 117442.8 | N1: Date Of Payment | O1: Amount
K2: =SUM(J2:J1000) -> 0 | L2: =SUM(F2:F1000) -> 0 | N2: 2019-05-01 | O2: 500
K3: =SUM(O2:O10000) -> 500

Sheet Sun International
A1: Guest Name | B1: Room CAT | C1: Check In | D1: Check Out | E1: NIT | F1: No.Rooms | G1: Rate P.P | H1: R.Price | I1: Comm | J1: R.Price Net | K1: =Germo!K2+Avalible!K2+'Travel Band'!K2+Fujy!K2+'Tomy Tour'!K2+'Sun International'!K2+'Golden Valley'!K2+E.H.T!K2+'Out Boon'!K2+'Alpah Travel'!K2+'Gomaa Abbas'!K2+'4 Season'!K2+'Air Link'!K2 -> 117442.8 | N1: Date Of Payment | O1: Amount
A2: SUN INT | B2: Double | C2: 2019-04-15 | D2: 2019-04-19 | E2: 4 | F2: 1 | G2: 100 | H2: 800 | I2: 0.15 | J2: 680 | K2: =SUM(J2:J1000) -> 18402.5 | L2: =SUM(F2:F1000) -> 19 | N2: 2019-05-01 | O2: 500
A3: SUN INT | B3: Famliy | C3: 2019-04-20 | D3: 2019-04-26 | E3: 6 | F3: 1 | G3: 100 | H3: 1800 | I3: 0.15 | J3: 1530 | K3: =SUM(O2:O10000) -> 500
A4: SUN INT | B4: Famliy | C4: 2019-04-20 | D4: 2019-04-25 | E4: 5 | F4: 5 | G4: 100 | H4: 7500 | I4: 0.15 | J4: 6375
A5: SUN INT | B5: Double | C5: 2019-04-24 | D5: 2019-04-29 | E5: 5 | F5: 8 | G5: 100 | H5: 8000 | I5: 0.15 | J5: 6800
A6: SUN INT | B6: Double | C6: 2019-04-25 | D6: 2019-04-29 | E6: 4 | F6: 1 | G6: 100 | H6: 800 | I6: 0.15 | J6: 680
A7: SUN INT | B7: Double | C7: 2019-04-25 | D7: 2019-04-30 | E7: 5 | F7: 2 | G7: 100 | H7: 2000 | I7: 0.15 | J7: 1700
A8: SUN INT | B8: Single | C8: 2019-04-25 | D8: 2019-04-30 | E8: 5 | F8: 1 | G8: 100 | H8: 750 | I8: 0.15 | J8: 637.5

Sheet Golden Valley
A1: Guest Name | B1: Room CAT | C1: Check In | D1: Check Out | E1: NIT | F1: No.Rooms | G1: Rate P.P | H1: R.Price | I1: Comm | J1: R.Price Net | K1: =Germo!K2+Avalible!K2+'Travel Band'!K2+Fujy!K2+'Tomy Tour'!K2+'Sun International'!K2+'Golden Valley'!K2+E.H.T!K2+'Out Boon'!K2+'Alpah Travel'!K2+'Gomaa Abbas'!K2+'4 Season'!K2+'Air Link'!K2 -> 117442.8 | N1: Date Of Payment | O1: Amount
A2: Golden | B2: Famliy | C2: 2019-04-16 | D2: 2019-04-19 | E2: 3 | F2: 3 | G2: 100 | H2: 2700 | I2: 0.15 | J2: 2295 | K2: =SUM(J2:J1000) -> 10934.4 | L2: =SUM(F2:F1000) -> 10 | N2: 2019-05-01 | O2: 500
A3: Golden | B3: Triple | C3: 2019-04-16 | D3: 2019-04-19 | E3: 3 | F3: 2 | G3: 100 | H3: 1764 | I3: 0.15 | J3: 1499.4 | K3: =SUM(O2:O10000) -> 500
A4: Golden Valley | B4: Famliy | C4: 2019-04-20 | D4: 2019-04-25 | E4: 5 | F4: 2 | G4: 100 | H4: 3000 | I4: 0.15 | J4: 2550
A5: Golden Valley | B5: Famliy | C5: 2019-04-20 | D5: 2019-04-26 | E5: 6 | F5: 3 | G5: 100 | H5: 5400 | I5: 0.15 | J5: 4590

Sheet E.H.T
A1: Guest Name | B1: Room CAT | C1: Check In | D1: Check Out | E1: NIT | F1: No.Rooms | G1: Rate P.P | H1: R.Price | I1: Comm | J1: R.Price Net | K1: =Germo!K2+Avalible!K2+'Travel Band'!K2+Fujy!K2+'Tomy Tour'!K2+'Sun International'!K2+'Golden Valley'!K2+E.H.T!K2+'Out Boon'!K2+'Alpah Travel'!K2+'Gomaa Abbas'!K2+'4 Season'!K2+'Air Link'!K2 -> 117442.8 | N1: Date Of Payment | O1: Amount
A2: E.H.T | B2: Single | C2: 2019-04-22 | D2: 2019-04-25 | E2: 3 | F2: 2 | G2: 100 | H2: 900 | I2: 0.15 | J2: 765 | K2: =SUM(J2:J1000) -> 2295 | L2: =SUM(F2:F1000) -> 4 | N2: 2019-05-01 | O2: 500
A3: E.H.T | B3: Famliy | C3: 2019-04-22 | D3: 2019-04-25 | E3: 3 | F3: 2 | G3: 100 | H3: 1800 | I3: 0.15 | J3: 1530 | K3: =SUM(O2:O10000) -> 500

Sheet Out Boon
A1: Guest Name | B1: Room CAT | C1: Check In | D1: Check Out | E1: NIT | F1: No.Rooms | G1: Rate P.P | H1: R.Price | I1: Comm | J1: R.Price Net | K1: =Germo!K2+Avalible!K2+'Travel Band'!K2+Fujy!K2+'Tomy Tour'!K2+'Sun International'!K2+'Golden Valley'!K2+E.H.T!K2+'Out Boon'!K2+'Alpah Travel'!K2+'Gomaa Abbas'!K2+'4 Season'!K2+'Air Link'!K2 -> 117442.8 | N1: Date Of Payment | O1: Amount
A2: Out boon | B2: Famliy | C2: 2019-04-20 | D2: 2019-04-27 | E2: 7 | F2: 2 | G2: 100 | H2: 4200 | I2: 0.15 | J2: 3570 | K2: =SUM(J2:J1000) -> 3570 | L2: =SUM(F2:F1000) -> 2 | N2: 2019-05-01 | O2: 500
K3: =SUM(O2:O10000) -> 500

Sheet Alpah Travel
A1: Guest Name | B1: Room CAT | C1: Check In | D1: Check Out | E1: NIT | F1: No.Rooms | G1: Rate P.P | H1: R.Price | I1: Comm | J1: R.Price Net | K1: =Germo!K2+Avalible!K2+'Travel Band'!K2+Fujy!K2+'Tomy Tour'!K2+'Sun International'!K2+'Golden Valley'!K2+E.H.T!K2+'Out Boon'!K2+'Alpah Travel'!K2+'Gomaa Abbas'!K2+'4 Season'!K2+'Air Link'!K2 -> 117442.8 | N1: Date Of Payment | O1: Amount
A2: Alpah Travel | B2: Famliy | C2: 2019-04-21 | D2: 2019-04-27 | E2: 6 | F2: 5 | G2: 100 | H2: 9000 | I2: 0.15 | J2: 7650 | K2: =SUM(J2:J1000) -> 10370 | L2: =SUM(F2:F1000) -> 9 | N2: 2019-05-01 | O2: 500
A3: Alpah Travel | B3: Double | C3: 2019-04-26 | D3: 2019-04-30 | E3: 4 | F3: 4 | G3: 100 | H3: 3200 | I3: 0.15 | J3: 2720 | K3: =SUM(O2:O10000) -> 500

Sheet Gomaa Abbas
A1: Guest Name | B1: Room CAT | C1: Check In | D1: Check Out | E1: NIT | F1: No.Rooms | G1: Rate P.P | H1: R.Price | I1: Comm | J1: R.Price Net | K1: =Germo!K2+Avalible!K2+'Travel Band'!K2+Fujy!K2+'Tomy Tour'!K2+'Sun International'!K2+'Golden Valley'!K2+E.H.T!K2+'Out Boon'!K2+'Alpah Travel'!K2+'Gomaa Abbas'!K2+'4 Season'!K2+'Air Link'!K2 -> 117442.8 | N1: Date Of Payment | O1: Amount
A2: Gomaa Abbas | B2: Famliy | C2: 2019-04-20 | D2: 2019-04-25 | E2: 5 | F2: 2 | G2: 100 | H2: 3000 | I2: 0.15 | J2: 2550 | K2: =SUM(J2:J1000) -> 2550 | L2: =SUM(F2:F1000) -> 2 | N2: 2019-05-01 | O2: 500
K3: =SUM(O2:O10000) -> 500

Sheet 4 Season
A1: Guest Name | B1: Room CAT | C1: Check In | D1: Check Out | E1: NIT | F1: No.Rooms | G1: Rate P.P | H1: R.Price | I1: Comm | J1: R.Price Net | K1: =Germo!K2+Avalible!K2+'Travel Band'!K2+Fujy!K2+'Tomy Tour'!K2+'Sun International'!K2+'Golden Valley'!K2+E.H.T!K2+'Out Boon'!K2+'Alpah Travel'!K2+'Gomaa Abbas'!K2+'4 Season'!K2+'Air Link'!K2 -> 117442.8 | N1: Date Of Payment | O1: Amount
K2: =SUM(J2:J1000) -> 0 | L2: =SUM(F2:F1000) -> 0 | N2: 2019-05-01 | O2: 500
K3: =SUM(O2:O10000) -> 500

Sheet Air Link
A1: Guest Name | B1: Room CAT | C1: Check In | D1: Check Out | E1: NIT | F1: No.Rooms | G1: Rate P.P | H1: R.Price | I1: Comm | J1: R.Price Net | K1: =Germo!K2+Avalible!K2+'Travel Band'!K2+Fujy!K2+'Tomy Tour'!K2+'Sun International'!K2+'Golden Valley'!K2+E.H.T!K2+'Out Boon'!K2+'Alpah Travel'!K2+'Gomaa Abbas'!K2+'4 Season'!K2+'Air Link'!K2 -> 117442.8 | N1: Date Of Payment | O1: Amount
A2: Air Link | B2: Double | C2: 2019-04-15 | D2: 2019-04-19 | E2: 4 | F2: 1 | G2: 100 | H2: 800 | I2: 0.15 | J2: 680 | K2: =SUM(J2:J1000) -> 15980 | L2: =SUM(F2:F1000) -> 14 | N2: 2019-05-01 | O2: 500
A3: Air Link | B3: Famliy | C3: 2019-04-15 | D3: 2019-04-20 | E3: 5 | F3: 3 | G3: 100 | H3: 4500 | I3: 0.15 | J3: 3825 | K3: =SUM(O2:O10000) -> 500
A4: Air Link | B4: Famliy | C4: 2019-04-15 | D4: 2019-04-21 | E4: 6 | F4: 2 | G4: 100 | H4: 3600 | I4: 0.15 | J4: 3060
A5: Air Link | B5: Famliy | C5: 2019-04-21 | D5: 2019-04-25 | E5: 4 | F5: 2 | G5: 100 | H5: 2400 | I5: 0.15 | J5: 2040
A6: Air Link | B6: Double | C6: 2019-04-21 | D6: 2019-04-26 | E6: 5 | F6: 2 | G6: 100 | H6: 2000 | I6: 0.15 | J6: 1700
A7: Air Link | B7: Famliy | C7: 2019-04-21 | D7: 2019-04-26 | E7: 5 | F7: 3 | G7: 100 | H7: 4500 | I7: 0.15 | J7: 3825
A8: Air Link | B8: Double | C8: 2019-04-22 | D8: 2019-04-27 | E8: 5 | F8: 1 | G8: 100 | H8: 1000 | I8: 0.15 | J8: 850

Sheet Sheet1

Sheet Sheet2

Sheet Sheet3

Sheet print
B2: =NOW() -> 2019-04-25T13:53:17.910 | D2: Company Name | H2: Albatros Hotels
D3: Germo
A4: Guest Name | B4: Room CAT | C4: Check In | D4: Check Out | E4: NIT | F4: No.Rooms | G4: Rate Per Persone | H4: Room Price | I4: Commision | J4: Room Price Net
A5: Germo | B5: Famliy | C5: 2019-04-15 | D5: 2019-04-20 | E5: 5 | F5: 1 | G5: 100 | H5: 1500 | I5: 0.15 | J5: 1275
A6: Germo | B6: Famliy | C6: 2019-04-20 | D6: 2019-04-24 | E6: 4 | F6: 1 | G6: 100 | H6: 1200 | I6: 0.15 | J6: 1020
A7: Germo | B7: Famliy | C7: 2019-04-20 | D7: 2019-04-25 | E7: 5 | F7: 4 | G7: 100 | H7: 6000 | I7: 0.15 | J7: 5100
A8: Germo | B8: Single | C8: 2019-04-20 | D8: 2019-04-25 | E8: 5 | F8: 1 | G8: 100 | H8: 750 | I8: 0.15 | J8: 637.5
A9: Germo | B9: Single | C9: 2019-04-23 | D9: 2019-04-30 | E9: 7 | F9: 8 | G9: 100 | H9: 8400 | I9: 0.15 | J9: 7140
A10: Germo | B10: Double | C10: 2019-04-23 | D10: 2019-04-30 | E10: 7 | F10: 2 | G10: 100 | H10: 2800 | I10: 0.15 | J10: 2380
D12: Total Rooms | F12: 17 | I12: Total Amount | J12: 17552.50 $
